bitfinex-derivatives/quotes_BTCF0:USTF0_20251216
["timestamp","ask_amount","ask_price","bid_price","bid_amount"]
[1765884480658,0.20723624,87093.0,87092.0,0.5470846]
[1765884481365,0.18027,87093.0,87092.0,0.5470846]
[1765884481963,0.0916,87093.0,87092.0,0.5470846]
[1765884482159,0.26979,87093.0,87092.0,0.5470846]
[1765884482363,0.18027,87093.0,87092.0,0.5470846]
[1765884483160,0.26979,87093.0,87092.0,0.5356]
[1765884483554,0.26979,87093.0,87092.0,0.5470846]
[1765884486460,0.0916,87093.0,87092.0,0.5470846]
[1765884487056,0.04373646,87093.0,87092.0,0.5470846]
[1765884487565,0.005,87093.0,87092.0,0.5470846]
[1765884488663,0.09006,87093.0,87092.0,0.5470846]
[1765884488863,0.16901,87093.0,87092.0,0.5470846]
[1765884491974,0.1959211,87093.0,87092.0,0.5356]
[1765884492568,0.1959211,87093.0,87092.0,0.3608]
[1765884493476,0.1959211,87093.0,87080.0,0.05044]
[1765884493477,0.16401,87082.0,87081.0,0.16273]
[1765884494468,0.175495,87089.0,87088.0,0.16273]
[1765884494666,0.2024134,87089.0,87088.0,0.52353]
[1765884495170,0.2024134,87089.0,87088.0,0.3608]
[1765884495370,0.16401,87078.0,87077.0,0.52353]
[1765884495574,0.19092603,87078.0,87077.0,0.52353]
[1765884495874,0.16401,87078.0,87077.0,0.52353]
[1765884496465,0.08506,87087.0,87086.0,0.16273]
[1765884496677,0.1119757,87087.0,87086.0,0.16273]
[1765884497067,0.1909257,87087.0,87086.0,0.16273]
[1765884497371,0.1119757,87087.0,87086.0,0.1742154]
[1765884497568,0.0269157,87087.0,87086.0,0.1742154]
[1765884498268,0.67276,87093.0,87092.0,0.16273]
[1765884498464,0.78474611,87093.0,87092.0,0.52353]
[1765884498773,0.02692611,87093.0,87092.0,0.52353]
[1765884498971,0.00017233,87094.0,87093.0,0.1742145]
[1765884499573,0.02709789,87094.0,87093.0,0.1742145]
[1765884500273,0.03209789,87094.0,87093.0,0.1742145]
[1765884502878,0.00517233,87094.0,87093.0,0.1742145]
[1765884503474,0.03207446,87094.0,87093.0,0.1742145]
[1765884503665,0.01143429,87325.0,87093.0,0.1742145]
[1765884503666,0.06189925,87116.0,87115.0,0.16273]
[1765884503871,0.17423278,87125.0,87122.0,0.16273]
[1765884504080,1.46291015,87123.0,87122.0,0.08308]
[1765884504266,0.1754914,87116.0,87115.0,0.52353]
[1765884504472,0.20240155,87116.0,87115.0,0.52353]
[1765884506373,0.20340155,87116.0,87115.0,0.52353]
[1765884507984,0.20240155,87116.0,87115.0,0.52453]
[1765884509173,0.20240155,87116.0,87115.0,0.52353]
[1765884510980,0.20240155,87116.0,87115.0,0.52453]
[1765884511285,0.20240155,87116.0,87115.0,0.16373]
[1765884512483,0.19092015,87116.0,87115.0,0.16373]
[1765884514482,0.19092015,87116.0,87115.0,0.16273]
[1765884514670,0.19092015,87116.0,87115.0,0.16373]
[1765884515075,0.19092015,87116.0,87115.0,0.16273]
[1765884515277,0.19092015,87116.0,87115.0,0.16373]
[1765884515685,0.20240155,87116.0,87115.0,0.002]
[1765884516082,0.20240155,87116.0,87115.0,0.1695]
[1765884516393,0.20240155,87116.0,87115.0,0.1685]
[1765884516979,0.92040155,87116.0,87115.0,0.1675]
[1765884517175,0.8934914,87116.0,87115.0,0.1675]
[1765884517982,0.8934914,87116.0,87115.0,0.08372]
[1765884518986,0.8934914,87116.0,87115.0,0.1675]
[1765884521389,0.88201,87116.0,87115.0,0.2230716]
[1765884521789,0.88201,87116.0,87115.0,0.1675]
[1765884523192,0.88201,87116.0,87115.0,0.21478]
[1765884523396,0.718,87116.0,87115.0,0.21478]
[1765884523593,0.718,87116.0,87115.0,0.21378]
[1765884523784,0.87641,87116.0,87115.0,0.21378]
[1765884524896,0.87641,87116.0,87115.0,0.21478]
[1765884525195,0.718,87116.0,87115.0,0.21478]
[1765884525993,0.718,87116.0,87115.0,0.21578]
[1765884526405,0.718,87116.0,87115.0,0.21478]
[1765884526583,0.718,87116.0,87115.0,0.21578]
[1765884526785,0.15858223,87124.0,87123.0,0.1789805]
[1765884526986,0.90319748,87124.0,87123.0,0.5397805]
[1765884527182,0.74478748,87124.0,87123.0,0.5397805]
[1765884527387,0.74478748,87124.0,87123.0,0.55103937]
[1765884527388,0.71813223,87124.0,87123.0,0.55103937]
[1765884527588,0.00017223,87124.0,87123.0,0.55103937]
[1765884534399,2.23e-06,87124.0,87123.0,0.55103937]
[1765884539212,0.00229522,87138.0,87137.0,0.1789787]
[1765884539400,0.00229522,87138.0,87137.0,0.9005787]
[1765884540707,0.08647522,87138.0,87137.0,0.9005787]
[1765884541909,0.00629522,87138.0,87137.0,0.9005787]
[1765884547003,0.15653522,87138.0,87137.0,0.9005787]
[1765884547203,0.08189522,87138.0,87137.0,0.9005787]
[1765884547603,0.00629522,87138.0,87137.0,0.9005787]
[1765884548310,0.15653522,87138.0,87137.0,0.9005787]
[1765884552105,0.00629522,87138.0,87137.0,0.9005787]
[1765884553211,0.15653522,87138.0,87137.0,0.9005787]
[1765884557802,0.00629522,87138.0,87137.0,0.9005787]
[1765884566419,0.15653522,87138.0,87137.0,0.9005787]
[1765884568928,0.16801372,87138.0,87137.0,0.9005787]
[1765884570124,0.15653522,87138.0,87137.0,0.9005787]
[1765884570523,0.08189522,87138.0,87137.0,0.9005787]
[1765884570730,0.00629522,87138.0,87137.0,0.9005787]
[1765884571829,0.15653522,87138.0,87137.0,0.9005787]
[1765884572833,0.00629522,87138.0,87137.0,0.9005787]
[1765884573131,0.08189522,87138.0,87137.0,0.9005787]
[1765884573434,0.00629522,87138.0,87137.0,0.9005787]
[1765884576131,0.15117522,87138.0,87137.0,0.9005787]
[1765884577023,0.00629522,87138.0,87137.0,0.9005787]
[1765884581039,0.00629522,87138.0,87137.0,0.98223784]
[1765884581228,0.00629522,87138.0,87137.0,0.9005787]
[1765884582135,0.04885,87160.0,87137.0,0.9005787]
[1765884582136,0.07256,87168.0,87167.0,0.1538347]
[1765884582325,0.17145664,87168.0,87167.0,0.5146347]
[1765884582738,0.09913664,87168.0,87167.0,0.5146347]
[1765884582934,0.17145664,87168.0,87167.0,0.5146347]
[1765884583124,0.00229417,87178.0,87167.0,0.3722747]
[1765884583125,0.00017081,87176.0,87167.0,0.3722747]
[1765884583329,0.14505081,87176.0,87175.0,0.5451037]
[1765884583533,0.17161151,87176.0,87175.0,0.5451037]
[1765884583944,0.17161151,87176.0,87175.0,0.55683122]
[1765884584138,0.17461151,87176.0,87175.0,0.51488752]
[1765884584839,0.17861151,87176.0,87175.0,0.51488752]
[1765884585230,0.15205081,87176.0,87175.0,0.51488752]
[1765884585430,0.15205081,87176.0,87175.0,0.56014752]
[1765884585928,0.15205081,87176.0,87175.0,0.51488752]
[1765884586124,0.14905081,87176.0,87175.0,0.51488752]
[1765884586440,0.15305081,87176.0,87175.0,0.51488752]
[1765884588242,0.15305081,87176.0,87175.0,0.56014752]
[1765884590531,0.00817081,87176.0,87175.0,0.56014752]
[1765884591644,0.15305081,87176.0,87175.0,0.51488752]
[1765884591942,0.15105081,87176.0,87175.0,0.51488752]
[1765884592145,0.15105081,87176.0,87175.0,0.56014752]
[1765884592437,0.14905081,87176.0,87175.0,0.56014752]
[1765884592636,0.00417081,87176.0,87175.0,0.56014752]
[1765884593737,0.07673081,87176.0,87175.0,0.56014752]
[1765884594540,0.14905081,87176.0,87175.0,0.51488752]
[1765884595035,0.14905081,87176.0,87175.0,0.56014752]
[1765884595341,0.07673081,87176.0,87175.0,0.56014752]
[1765884595733,0.00417081,87176.0,87175.0,0.56014752]
[1765884596130,0.07673081,87176.0,87175.0,0.56014752]
[1765884596340,0.07473081,87176.0,87175.0,0.56214752]
[1765884596538,0.00217081,87176.0,87175.0,0.57362122]
[1765884596735,0.07273081,87176.0,87175.0,0.57662122]
[1765884597240,0.07273081,87176.0,87175.0,0.57362122]
[1765884597438,0.00017081,87176.0,87175.0,0.57462122]
[1765884597640,0.00017081,87176.0,87175.0,0.57662122]
[1765884597939,0.07273081,87176.0,87175.0,0.57662122]
[1765884598438,0.00017081,87176.0,87175.0,0.57362122]
[1765884598643,0.00017081,87176.0,87175.0,0.57562122]
[1765884598844,0.07273081,87176.0,87175.0,0.57562122]
[1765884599645,0.00017081,87176.0,87175.0,0.57562122]
[1765884600048,0.00017081,87176.0,87175.0,0.57362122]
[1765884600347,0.00017081,87176.0,87175.0,0.57562122]
[1765884600543,0.19125,87205.0,87204.0,0.14236]
[1765884600744,0.18281359,87205.0,87204.0,0.50316]
[1765884600937,0.22918359,87205.0,87204.0,0.50316]
[1765884601739,0.1563508,87197.0,87196.0,0.07219201]
[1765884602144,0.1563508,87197.0,87196.0,0.14253201]
[1765884603344,0.1573508,87197.0,87196.0,0.14253201]
[1765884605740,0.14588,87197.0,87196.0,0.14253201]
[1765884607747,0.07356,87197.0,87196.0,0.14253201]
[1765884608251,0.001,87197.0,87196.0,0.14253201]
[1765884609039,0.1604495,87207.0,87206.0,0.0114692]
[1765884609247,0.0855191,87210.0,87209.0,0.1597392]
[1765884609445,0.0855187,87213.0,87212.0,0.1597388]
[1765884609641,0.18691649,87213.0,87212.0,0.1597388]
[1765884610243,0.18691649,87213.0,87212.0,0.14827]
[1765884610542,0.18691649,87213.0,87206.0,0.50907]
[1765884610543,0.1604494,87207.0,87206.0,0.50907]
[1765884610739,0.18691719,87207.0,87206.0,0.50907]
[1765884610939,0.18691719,87207.0,87206.0,0.3608]
[1765884611653,0.18891719,87207.0,87206.0,0.3608]
[1765884612152,0.18891719,87207.0,87206.0,0.43631]
[1765884612350,0.18891719,87207.0,87206.0,0.50907]
[1765884613143,0.02846779,87207.0,87206.0,0.50907]
[1765884613451,0.02846779,87207.0,87206.0,0.86987]
[1765884613650,0.002,87207.0,87206.0,0.86987]
[1765884614353,0.00229312,87218.0,87217.0,0.1597381]
[1765884614648,0.15127312,87218.0,87217.0,0.5205381]
[1765884614845,0.17775557,87218.0,87217.0,0.5205381]
[1765884615051,0.10282557,87218.0,87217.0,0.5205381]
[1765884615645,0.00229312,87218.0,87217.0,0.5205381]
[1765884616247,0.00229312,87218.0,87217.0,0.5225381]
[1765884616949,0.15127312,87218.0,87217.0,0.5235381]
[1765884617151,0.17773895,87218.0,87217.0,0.3638]
[1765884617359,0.17773895,87218.0,87217.0,0.003]
[1765884618244,0.17773895,87218.0,87217.0,0.001]
[1765884618444,0.17773895,87218.0,87217.0,0.003]
[1765884619053,0.17773895,87218.0,87217.0,0.001]
[1765884619857,0.14898,87207.0,87206.0,0.50907]
[1765884620353,0.1604494,87207.0,87206.0,0.50907]
[1765884620556,0.1604494,87207.0,87206.0,0.43631]
[1765884620761,0.18692187,87207.0,87206.0,0.43631]
[1765884620949,0.18692187,87207.0,87206.0,0.3608]
[1765884621255,0.18692187,87207.0,87206.0,0.3618]
[1765884621460,0.18692187,87207.0,87206.0,0.3638]
[1765884622156,0.18692187,87207.0,87206.0,0.3618]
[1765884622454,0.18692187,87207.0,87206.0,0.3628]
[1765884623057,0.18692187,87207.0,87206.0,0.002]
[1765884623949,0.18692187,87207.0,87206.0,0.15027]
[1765884624150,0.18692187,87207.0,87206.0,0.14927]
[1765884624461,0.18692187,87207.0,87206.0,0.001]
[1765884624643,0.18692187,87207.0,87198.0,0.43631]
[1765884624644,0.1604505,87199.0,87198.0,0.43631]
[1765884624849,0.18692297,87199.0,87198.0,0.43631]
[1765884625162,0.18692297,87199.0,87198.0,0.50907]
[1765884626162,0.18692297,87199.0,87198.0,0.51007]
[1765884626342,0.18692297,87199.0,87198.0,0.51207]
[1765884626543,0.18692297,87199.0,87198.0,0.51107]
[1765884626749,0.18692297,87199.0,87198.0,0.51207]
[1765884627149,0.18692297,87199.0,87198.0,0.51107]
[1765884627354,0.18692297,87199.0,87198.0,0.51207]
[1765884628050,0.18692297,87199.0,87198.0,0.51007]
[1765884628257,0.18692297,87199.0,87198.0,0.51107]
[1765884628858,0.18692297,87199.0,87198.0,0.50907]
[1765884629051,0.0114704,87200.0,87199.0,0.1597405]
[1765884629251,0.11205303,87200.0,87199.0,0.1597405]
[1765884629459,0.02653263,87200.0,87199.0,0.1597405]
[1765884629661,0.07405,87207.0,87206.0,0.14827]
[1765884629863,0.038003,87207.0,87206.0,0.50907]
[1765884630062,0.0265336,87207.0,87206.0,0.50907]
[1765884630859,0.0114694,87208.0,87207.0,0.1597394]
[1765884631156,0.03800127,87208.0,87207.0,0.1597394]
[1765884632061,0.11205127,87208.0,87207.0,0.1597394]
[1765884632649,0.02653187,87208.0,87207.0,0.1597394]
[1765884633047,0.10058187,87208.0,87207.0,0.1597394]
[1765884633249,0.02653187,87208.0,87207.0,0.1597394]
[1765884633447,0.6405989,87211.0,87210.0,0.14363]
[1765884633659,0.66713076,87211.0,87210.0,0.155099]
[1765884634053,0.66713076,87211.0,87210.0,0.14363]
[1765884637256,0.66713076,87211.0,87210.0,0.07551]
[1765884637455,0.1557994,87207.0,87206.0,0.3608]
[1765884637656,0.1558005,87199.0,87198.0,0.50049]
[1765884637860,0.18233236,87199.0,87198.0,0.50049]
[1765884638859,0.18233236,87199.0,87198.0,0.50149]
[1765884639365,0.18233236,87199.0,87198.0,0.50049]
[1765884639565,0.18233236,87199.0,87198.0,0.50149]
[1765884639966,0.18233236,87199.0,87198.0,0.50049]
[1765884640264,0.18233236,87199.0,87198.0,0.50149]
[1765884640459,0.18233236,87199.0,87198.0,0.50249]
[1765884641062,0.18233236,87199.0,87198.0,0.50149]
[1765884641265,0.1558005,87199.0,87198.0,0.50249]
[1765884641969,0.1558005,87199.0,87198.0,0.5548306]
[1765884641970,0.14433,87199.0,87198.0,0.5548306]
[1765884642160,0.14433,87199.0,87198.0,0.5538306]
[1765884642463,0.14433,87199.0,87198.0,0.5548306]
[1765884642655,0.14433,87199.0,87198.0,0.5139606]
[1765884644753,0.14433,87199.0,87198.0,0.5545106]
[1765884645366,0.07148,87199.0,87198.0,0.5545106]
[1765884645562,0.1557998,87204.0,87203.0,0.15116]
[1765884645768,0.18234095,87204.0,87203.0,0.15116]
[1765884646663,0.18234095,87204.0,87203.0,0.15216]
[1765884647071,0.18234095,87204.0,87203.0,0.14069]
[1765884647772,0.18234095,87204.0,87203.0,0.15216]
[1765884648860,0.18234095,87204.0,87203.0,0.14069]
[1765884649758,0.18234095,87204.0,87203.0,0.07257]
[1765884649966,0.18234095,87204.0,87203.0,0.001]
[1765884651073,0.1558008,87197.0,87196.0,0.00017201]
[1765884651274,0.18234195,87197.0,87196.0,0.07174201]
[1765884651768,0.18234195,87197.0,87196.0,0.13986201]
[1765884653466,0.18234195,87197.0,87196.0,0.14086201]
[1765884654070,0.18234195,87197.0,87196.0,0.14186201]
[1765884655168,0.18234195,87197.0,87196.0,0.14086201]
[1765884655374,0.18234195,87197.0,87196.0,0.14186201]
[1765884655776,0.18234195,87197.0,87196.0,0.00117201]
[1765884655975,0.18234195,87197.0,87196.0,0.00217201]
[1765884656678,0.18234195,87197.0,87190.0,0.3608]
[1765884656679,0.1558015,87191.0,87190.0,0.3608]
[1765884656870,0.155803,87180.0,87179.0,0.50049]
[1765884657077,0.18234415,87180.0,87179.0,0.50049]
[1765884657381,0.155803,87180.0,87179.0,0.50049]
[1765884658075,0.14433,87180.0,87179.0,0.50249]
[1765884658275,0.09433,87180.0,87179.0,0.50249]
[1765884658477,0.0114729,87181.0,87180.0,0.192033]
[1765884658785,0.1558026,87184.0,87183.0,0.1511626]
[1765884658985,0.18229639,87184.0,87183.0,0.13969]
[1765884659467,0.1558026,87184.0,87183.0,0.13969]
[1765884660581,0.18228805,87184.0,87183.0,0.002]
[1765884660879,0.18228805,87184.0,87183.0,0.003]
[1765884661282,0.18228805,87184.0,87183.0,0.07357]
[1765884661578,0.18228805,87184.0,87183.0,0.07457]
[1765884661779,0.18228805,87184.0,87183.0,0.003]
[1765884662477,0.18228805,87184.0,87171.0,0.00017201]
[1765884662478,0.155804,87172.0,87171.0,0.13986201]
[1765884662681,0.569364,87172.0,87171.0,0.13986201]
[1765884662977,0.55789,87172.0,87171.0,0.15107942]
[1765884663176,0.329564,87181.0,87180.0,0.18056]
[1765884663482,0.89963412,87181.0,87180.0,0.18056]
[1765884663867,0.8731629,87181.0,87180.0,0.18056]
[1765884664475,0.8731629,87181.0,87180.0,0.18156]
[1765884664874,0.8731629,87181.0,87180.0,0.18056]
[1765884665076,0.8731629,87181.0,87180.0,0.18156]
[1765884665771,0.8731629,87181.0,87180.0,0.18256]
[1765884666383,0.8731629,87181.0,87180.0,0.18156]
[1765884666583,0.8731629,87181.0,87180.0,0.18356]
[1765884666785,0.14433,87181.0,87180.0,0.18356]
[1765884666989,0.6348,87181.0,87180.0,0.18456]
[1765884667486,0.6348,87181.0,87180.0,0.18256]
[1765884667783,0.07148,87181.0,87180.0,0.18456]
[1765884667982,0.13882,87181.0,87180.0,0.18456]
[1765884668690,0.13882,87181.0,87180.0,0.18256]
[1765884668885,0.71744,87185.0,87184.0,0.1379]
[1765884670083,0.0114715,87192.0,87191.0,0.1379]
[1765884670392,0.0780115,87192.0,87191.0,0.4987]
[1765884670988,0.0114715,87192.0,87191.0,0.5101715]
[1765884671778,0.3076411,87201.0,87200.0,0.1379]
[1765884671985,0.0114697,87205.0,87204.0,0.17736]
[1765884672188,0.0780097,87205.0,87204.0,0.1888298]
[1765884672695,0.1453497,87205.0,87204.0,0.1888298]
[1765884672991,0.2871294,87208.0,87207.0,0.1493694]
[1765884673196,0.20912,87208.0,87207.0,0.5101694]
[1765884673496,0.15912,87208.0,87207.0,0.5101694]
[1765884674000,0.08030112,87218.0,87217.0,0.1493681]
[1765884674295,0.04024851,87218.0,87217.0,0.5101681]
[1765884674488,0.00229312,87218.0,87217.0,0.5101681]
[1765884675690,0.7841,87222.0,87221.0,0.1493676]
[1765884675897,0.13388,87240.0,87239.0,0.1379]
[1765884676086,0.13388,87240.0,87239.0,0.4987]
[1765884676792,0.06654,87240.0,87239.0,0.4987]
[1765884676993,0.06654,87240.0,87239.0,0.51031803]
[1765884677288,0.002,87240.0,87239.0,0.51031803]
[1765884677794,0.00112111,87240.0,87239.0,0.51031803]
[1765884678494,0.00212111,87240.0,87239.0,0.51031803]
[1765884679690,0.0114644,87246.0,87245.0,0.1379]
[1765884680195,0.6780239,87249.0,87248.0,0.17937]
[1765884681503,0.5441439,87249.0,87248.0,0.17937]
[1765884681793,0.1453443,87246.0,87245.0,0.002]
[1765884682002,0.1453443,87246.0,87245.0,0.1399]
[1765884682583,0.1453443,87246.0,87245.0,0.1379]
[1765884682788,0.13388,87246.0,87245.0,0.1379]
[1765884683399,0.13388,87246.0,87245.0,0.1389]
[1765884683893,0.13388,87246.0,87245.0,0.1379]
[1765884684095,0.13388,87246.0,87245.0,0.1389]
[1765884684286,0.06654,87246.0,87245.0,0.1389]
[1765884684483,0.59922,87249.0,87248.0,0.17937]
[1765884684889,0.6780239,87249.0,87248.0,0.17937]
[1765884685085,0.6780239,87249.0,87248.0,0.06725]
[1765884685789,0.6780239,87249.0,87248.0,0.1389]
[1765884685990,0.6780239,87249.0,87248.0,0.1399]
[1765884686298,0.6780239,87249.0,87248.0,0.18137]
[1765884687099,0.53268,87249.0,87248.0,0.18137]
[1765884687303,0.06883207,87258.0,87257.0,0.1379]
[1765884687492,0.13617207,87258.0,87257.0,0.1379]
[1765884687893,0.00229207,87258.0,87257.0,0.1493629]
[1765884688196,0.55536,87265.0,87264.0,0.1493619]
[1765884688502,0.55536,87265.0,87264.0,0.5101619]
[1765884689188,0.55536,87265.0,87264.0,0.4987]
[1765884689390,0.55536,87265.0,87264.0,0.5101619]
[1765884689589,0.55536,87265.0,87264.0,0.4987]
[1765884690788,0.48802,87265.0,87264.0,0.4987]
[1765884690987,0.42148,87265.0,87264.0,0.4987]
[1765884691194,0.06654,87265.0,87264.0,0.3608]
[1765884691394,0.13388,87265.0,87264.0,0.4987]
[1765884691804,0.13388,87265.0,87264.0,0.3608]
[1765884692100,0.13388,87265.0,87249.0,0.0001719]
[1765884692101,0.06654,87256.0,87255.0,0.17937]
[1765884692290,0.145343,87256.0,87255.0,0.54017]
[1765884692490,0.095343,87256.0,87255.0,0.54017]
[1765884692692,0.1453417,87266.0,87265.0,0.1379]
[1765884694891,0.1463417,87266.0,87265.0,0.06725]
[1765884695305,0.1484817,87266.0,87265.0,0.13111]
[1765884696294,0.1490121,87263.0,87262.0,0.43014]
[1765884696796,0.149013,87256.0,87255.0,0.53547]
[1765884696997,0.1490138,87250.0,87249.0,0.1333719]
[1765884698306,0.1490138,87250.0,87249.0,0.1363719]
[1765884699492,0.1490138,87250.0,87249.0,0.0031719]
[1765884700005,0.1490138,87250.0,87249.0,0.0011719]
[1765884700206,0.17538113,87250.0,87249.0,0.0021719]
[1765884701014,0.17538113,87250.0,87249.0,0.1353719]
[1765884701312,0.17538113,87250.0,87249.0,0.0021719]
[1765884701699,0.17538113,87250.0,87249.0,0.0001719]
[1765884702603,0.17538113,87250.0,87249.0,0.0695119]
[1765884703005,0.16391733,87250.0,87249.0,0.1333719]
[1765884703506,0.02636733,87250.0,87249.0,0.1333719]
[1765884703707,0.1490124,87261.0,87260.0,0.1332]
[1765884703904,0.13755,87261.0,87260.0,0.1446625]
[1765884704599,0.6313022,87263.0,87262.0,0.17234]
[1765884704795,0.7688522,87263.0,87262.0,0.3608]
[1765884704996,0.1490131,87255.0,87254.0,0.3608]
[1765884705512,0.1490131,87255.0,87254.0,0.43014]
[1765884705714,0.1490131,87255.0,87254.0,0.494]
[1765884707110,0.1833031,87255.0,87254.0,0.3608]
[1765884707308,0.1843031,87255.0,87254.0,0.3608]
[1765884707608,0.1500131,87255.0,87254.0,0.494]
[1765884710011,0.1500131,87255.0,87254.0,0.3608]
[1765884710221,0.1490138,87250.0,87249.0,0.0001719]
[1765884712709,0.1490155,87237.0,87236.0,0.3608]
[1765884713119,0.1490168,87227.0,87226.0,0.3608]
[1765884713426,0.0490168,87227.0,87226.0,0.3608]
[1765884713714,0.0092836,87227.0,87226.0,0.494]
[1765884714218,0.08263059,87254.0,87253.0,0.1332]
[1765884714415,0.06807,87264.0,87263.0,0.1332]
[1765884714615,0.17913,87269.0,87268.0,0.1332]
[1765884715622,0.20494876,87269.0,87268.0,0.1332]
[1765884716410,0.20494876,87269.0,87268.0,0.1352]
[1765884717011,0.16336876,87269.0,87268.0,0.1352]
[1765884717214,0.16336876,87269.0,87268.0,0.1362]
[1765884717417,0.09388876,87269.0,87268.0,0.1362]
[1765884717617,0.02581876,87269.0,87268.0,0.1362]
[1765884718416,0.02581876,87269.0,87268.0,0.1352]
[1765884718609,0.02581876,87269.0,87268.0,0.1372]
[1765884719208,0.02581876,87269.0,87268.0,0.1352]
[1765884719414,0.02581876,87269.0,87268.0,0.1372]
[1765884720125,0.09388876,87269.0,87268.0,0.1372]
[1765884720313,0.16336876,87269.0,87268.0,0.1372]
[1765884720710,0.16336876,87269.0,87268.0,0.1352]
[1765884720916,0.16336876,87269.0,87268.0,0.1372]
[1765884721112,0.16336876,87269.0,87268.0,0.004]
[1765884721421,0.16336876,87269.0,87268.0,0.002]
[1765884721620,0.16336876,87269.0,87268.0,0.003]
[1765884723034,0.05,87274.0,87273.0,0.1446608]
[1765884723217,0.05,87274.0,87273.0,0.5054608]
[1765884723518,0.1905895,87283.0,87282.0,0.1332]
[1765884723718,0.1905895,87283.0,87282.0,0.494]
[1765884725124,0.1905895,87283.0,87282.0,0.495]
[1765884726134,0.0124093,87284.0,87283.0,0.19738]
[1765884726330,0.19056,87283.0,87282.0,0.3628]
[1765884726632,0.19056,87283.0,87282.0,0.56018]
[1765884726833,0.19056,87283.0,87282.0,0.3618]
[1765884727040,0.19056,87283.0,87282.0,0.56018]
[1765884728437,0.19056,87283.0,87282.0,0.46058]
[1765884729131,0.2020217,87266.0,87265.0,0.55818]
[1765884729341,0.2020217,87266.0,87265.0,0.91898]
[1765884729526,0.2020217,87266.0,87265.0,0.93026653]
[1765884730736,0.2020217,87266.0,87265.0,0.93226653]
[1765884731622,0.2020217,87266.0,87265.0,0.93326653]
[1765884733124,0.2020217,87266.0,87265.0,0.93126653]
[1765884733430,0.2020217,87266.0,87265.0,0.93226653]
[1765884733831,0.19056,87266.0,87265.0,0.93226653]
[1765884735638,0.14056,87266.0,87265.0,0.93226653]
[1765884736039,0.09056,87266.0,87265.0,0.93226653]
[1765884736224,0.18547,87266.0,87265.0,0.93226653]
[1765884739134,0.0114614,87268.0,87265.0,0.93226653]
[1765884739135,0.0114614,87268.0,87267.0,0.19738]
[1765884739328,0.1063714,87268.0,87267.0,0.19738]
[1765884739526,0.2020214,87268.0,87267.0,0.19738]
[1765884740136,0.2020207,87274.0,87273.0,0.0114608]
[1765884740327,0.9202207,87274.0,87273.0,0.5696408]
[1765884740642,0.2029693,87284.0,87283.0,0.19738]
[1765884740939,0.2029693,87284.0,87283.0,0.55818]
[1765884740940,0.94655626,87284.0,87283.0,0.55818]
[1765884742543,0.94655626,87284.0,87283.0,0.55918]
[1765884743142,0.22839626,87284.0,87283.0,0.55918]
[1765884743334,0.94651626,87284.0,87283.0,0.55918]
[1765884745044,0.02637696,87284.0,87283.0,0.6306595]
[1765884745246,0.00095,87284.0,87283.0,0.6316595]
[1765884745841,0.00095,87284.0,87283.0,0.6306595]
[1765884746036,0.00095,87284.0,87283.0,0.6316595]
[1765884753860,0.23657102,87298.0,87297.0,0.22749]
[1765884754158,0.26206896,87298.0,87297.0,0.58829]
[1765884754346,0.27352646,87298.0,87297.0,0.58829]
[1765884755250,0.27552646,87298.0,87297.0,0.58829]
[1765884757059,0.27552646,87298.0,87297.0,0.33556896]
[1765884757363,0.3122385,87290.0,87289.0,0.0001719]
[1765884757558,0.23877,87272.0,87271.0,0.24049]
[1765884757761,0.2502309,87272.0,87271.0,0.24049]
[1765884758055,0.23877,87272.0,87271.0,0.24049]
[1765884758950,0.23877,87272.0,87271.0,0.24249]
[1765884759155,0.12011,87272.0,87271.0,0.24249]
[1765884759759,0.2389419,87280.0,87279.0,0.25195]
[1765884759949,0.0001719,87280.0,87279.0,0.61275]
[1765884760151,0.1315677,87297.0,87295.0,0.0114578]
[1765884760358,0.12011,87297.0,87296.0,0.60129]
[1765884760556,0.02549125,87297.0,87296.0,0.60129]
[1765884760761,0.00229102,87298.0,87297.0,0.3207776]
[1765884761755,0.24106102,87298.0,87297.0,0.2519476]
[1765884761952,0.24206102,87298.0,87297.0,0.2519476]
[1765884762152,0.12440102,87298.0,87297.0,0.2519476]
[1765884762858,0.24306102,87298.0,87297.0,0.12006]
[1765884763064,0.2502276,87297.0,87296.0,0.3608]
[1765884763465,0.2502276,87297.0,87296.0,0.60129]
[1765884763958,0.23877,87297.0,87296.0,0.60129]
[1765884764262,0.12340102,87298.0,87297.0,0.2519476]
[1765884764565,0.24106102,87298.0,87297.0,0.24049]
[1765884764765,0.24106102,87298.0,87296.0,0.3608]
[1765884764766,0.2502276,87297.0,87296.0,0.3608]
[1765884764966,0.2757147,87297.0,87296.0,0.3608]
[1765884767961,0.2767147,87297.0,87296.0,0.3608]
[1765884769264,0.2767147,87297.0,87296.0,0.60129]
[1765884769457,0.2652571,87297.0,87296.0,0.60129]
[1765884770263,0.2652571,87297.0,87296.0,0.6127477]
[1765884771372,0.2652571,87297.0,87296.0,0.6815777]
[1765884772264,0.2767147,87297.0,87296.0,0.6815777]
[1765884772569,0.2767147,87297.0,87296.0,0.60129]
[1765884773865,0.3447447,87297.0,87296.0,0.60129]
[1765884776768,0.3447447,87297.0,87296.0,0.48086]
[1765884776963,0.3447447,87297.0,87296.0,0.3608]
[1765884777468,0.3447447,87297.0,87296.0,0.60129]
[1765884777867,0.2767147,87297.0,87296.0,0.60129]
[1765884778672,0.3447447,87297.0,87296.0,0.60129]
[1765884778871,0.3447447,87297.0,87296.0,0.3608]
[1765884779373,0.3182585,87290.0,87289.0,0.0001719]
[1765884779563,0.3437456,87290.0,87289.0,0.0001719]
[1765884779960,0.23877,87289.0,87288.0,0.3608]
[1765884780170,0.2502296,87282.0,87281.0,0.60129]
[1765884780474,0.2757167,87282.0,87281.0,0.60129]
[1765884780664,0.2757167,87282.0,87281.0,0.3608]
[1765884780864,0.2502312,87270.0,87269.0,0.60129]
[1765884781662,0.250402,87278.0,87277.0,0.24049]
[1765884781868,0.09579912,87278.0,87277.0,0.60129]
[1765884782166,0.54289,87282.0,87281.0,0.24049]
[1765884782772,0.54289,87282.0,87281.0,0.24149]
[1765884783568,0.40016474,87291.0,87290.0,0.23193]
[1765884783778,0.2268,87291.0,87290.0,0.66235]
[1765884784073,0.56516,87292.0,87291.0,0.23193]
[1765884784274,0.67742,87292.0,87291.0,0.23193]
[1765884784476,0.79196,87292.0,87291.0,0.2433884]
[1765884785361,0.67842,87292.0,87291.0,0.2433884]
[1765884785978,0.79296,87292.0,87291.0,0.2433884]
[1765884788876,0.56616,87292.0,87291.0,0.2433884]